Cogmind - Beta 15 @@@ ROGUE MODE // 2025.05.19 @ 11:06:24 Player: Cess183 Result: Destroyed by P-60 Hacker with Shock Rifle Performance ------------- Evolutions (1) 500 Regions Visited (5) 1000 Robots Destroyed (67) 335 Value Destroyed (1811) 1811 Prototype IDs (1) 20 Alien Tech Used (0) 0 Bonus (433) 433 TOTAL SCORE: 4099 Bonus ------- High Alert Combat Kills 193 Follower Combat Kills 40 Entered Garrisons 200 Cogmind --------- Core Integrity 0/400 Matter 279/300 Energy 17/100 System Corruption 8% Temperature Warm (157) Movement Treading (160) Location -9/Garrison Parts ------- > --- POWER (1) -------- (None) > --- PROPULSION (2) --- Light Treads Light Treads > --- UTILITY (4) ------ Medium Storage Unit Visual Processing Unit Utility Shielding > --- WEAPON (2) ------- Advanced Beam Cannon > --- INVENTORY (10) --- Reinforced Ion Engine Light Treads Relay Coupler [NC] (31) Advanced Beam Cannon Rocket Launcher Rocket Launcher Peak State ------------ > --- POWER ------------ Improved Ion Engine > --- PROPULSION ------- Light Treads Light Treads > --- UTILITY ---------- Medium Storage Unit Visual Processing Unit Hardened Light Armor Plating Drone Bay > --- WEAPON ----------- Advanced Beam Cannon Rocket Launcher > --- INVENTORY -------- Ion Engine Light Treads Light Treads Light Treads Light Treads Utility Shielding Advanced Beam Cannon Advanced Beam Cannon Rocket Launcher Rocket Launcher [Rating: 20] Favorites ----------- Power Improved Ion Engine Engine Improved Ion Engine Propulsion Light Treads Treads Light Treads Wheel Wheel Utility Medium Storage Unit Device Shield Generator Storage Medium Storage Unit Processor Visual Processing Unit Protection Hardened Light Armor Plating Weapon Advanced Beam Cannon Energy Gun Small Laser Energy Cannon Advanced Beam Cannon Launcher Rocket Launcher Build | -11 -10 -10 -9 -9 -9 ------- Run | Yrd Mat Min Mat Sto Gar Slots Evolved 2 | . . . 2 . . Power . | . . . . . . Propulsion . | . . . . . . Utility 2 | . . . 2 . . Weapon . | . . . . . . Parts Attached 37 | 7 1 . 4 17 8 Power 5 | 1 . . 1 3 . Engine 5 | 1 . . 1 3 . Core . | . . . . . . Reactor . | . . . . . . Propulsion 12 | 2 . . 1 5 4 Treads 7 | . . . . 3 4 Leg . | . . . . . . Wheel 5 | 2 . . 1 2 . Hover . | . . . . . . Flight . | . . . . . . Utility 11 | 2 1 . 2 4 2 Device 4 | 1 . . 1 2 . Storage 3 | 1 1 . . 1 . Processor 1 | . . . . 1 . Hackware . | . . . . . . Protection 3 | . . . 1 . 2 Artifact . | . . . . . . Weapon 9 | 2 . . . 5 2 Energy Gun 2 | 2 . . . . . Energy Cannon 5 | . . . . 3 2 Ballistic Gun . | . . . . . . Ballistic Cannon . | . . . . . . Launcher 2 | . . . . 2 . Special Weapon . | . . . . . . Impact Weapon . | . . . . . . Slashing Weapon . | . . . . . . Piercing Weapon . | . . . . . . Special Melee Weapon . | . . . . . . Unidentified Prototypes 1 | . . . . 1 . Parts Lost 12 | . . . 1 3 8 Power 3 | . . . 1 1 1 Propulsion 2 | . . . . . 2 Utility 3 | . . . . 1 2 Weapon 4 | . . . . 1 3 Highest Loss Streak 7 | . . . 1 2 7 To Critical Strikes . | . . . . . . Average Backups 8 | 2 5 5 6 9 9 Power . | . 1 1 . . 1 Propulsion 4 | 2 4 4 5 4 3 Utility . | . . . . 1 1 Weapon 2 | . . . . 2 4 Tool/Special . | . . . . . . Unused Backups 15 | 2 . . . 7 6 Power 2 | . . . . . 2 Propulsion 8 | 2 . . . 5 1 Utility 1 | . . . . . 1 Weapon 4 | . . . . 2 2 Tool/Special . | . . . . . . Average Slot Usage (%) 95 | . 100 100 86 94 97 Engine 8 | . 14 14 9 6 10 Treads 11 | . . . . 10 21 Wheel 10 | . 28 28 22 11 . Device 14 | . 14 14 13 16 10 Storage 11 | . 14 14 11 11 11 Processor 5 | . . . . 5 11 Protection 9 | . . . 8 10 11 Energy Gun 4 | . 28 28 22 2 . Energy Cannon 9 | . . . . 10 13 Launcher 7 | . . . . 9 7 Peak Build Rating 20 | 7 7 7 11 20 20 Average Rating 15 | 6 7 7 8 16 18 On Entrance 8 | . 7 7 7 11 20 Naked Turns . | . . . . . . Heaviest Build 36 | 11 16 16 22 36 36 Greatest Support 40 | 20 20 20 20 40 40 Greatest Overweight (x) 1 | . . . 1 1 . Average Overweight (x) . | . . . . . . Largest Inventory Capacity 10 | 8 10 10 10 10 10 Average Capacity 9 | 7 9 10 10 10 10 Most Carried 10 | 7 6 5 10 10 10 Average Carried 8 | 3 5 5 6 9 9 Final Capacity 10 | 8 10 10 10 10 10 Final Carried 10 | 5 5 5 10 10 6 Class Distribution -------------------- 68% | Mutant 31% | Scavenger-Mutant Dominant Class ---------------- Mutant | -10/Materials Mutant | -10/Mines Mutant | -9/Materials Mutant | -9/Storage Scavenger-Mutant | -9/Garrison Resources | -11 -10 -10 -9 -9 -9 ----------- Run | Yrd Mat Min Mat Sto Gar Matter Collected 1197 | 270 10 . 35 713 169 Remotely . | . . . . . . Salvage Created 1928 | 204 12 29 107 1058 518 Parts 118 | 17 1 2 6 58 34 Haulers Intercepted 5 | . . . . 5 . Recyclers Shooed 2 | 1 . . . 1 . Parts Field Recycled . | . . . . . . Retrieved Matter . | . . . . . . Parts Self-Destructed . | . . . . . . Prevented . | . . . . . . Kills | -11 -10 -10 -9 -9 -9 ------- Run | Yrd Mat Min Mat Sto Gar Combat Hostiles Destroyed 43 | . . 2 2 25 14 Guns 5 | . . 2 2 1 . Cannons 13 | . . . . 6 7 AOE 25 | . . . . 18 7 Classes Destroyed 14 | 3 1 1 1 5 3 Worker 5 | 2 . . . 3 . Builder 1 | . . . . 1 . Tunneler 4 | 4 . . . . . Hauler 5 | . . . . 5 . Recycler 5 | 1 . . . 4 . Operator 1 | . 1 . . . . Drone 2 | . . . . 1 1 Watcher 3 | . . . . 2 1 Swarmer 14 | . . 2 . 10 2 Grunt 9 | . . . . 6 3 Brawler 2 | . . . . . 2 Duelist 3 | . . . . . 3 Sentry 14 | . . . 2 9 3 Programmer 1 | . . . . . 1 Best Kill Streak 9 | 3 1 2 1 9 4 Combat Bots Only 6 | . . 2 1 6 3 Max Kills in Single Turn 6 | 1 1 1 1 6 3 Gunslinging . | . . . . . . Exploded 5 | . . . . 5 3 Melee . | . . . . . . Uniques/NPCs Destroyed . | . . . . . . Combat | -11 -10 -10 -9 -9 -9 -------- Run | Yrd Mat Min Mat Sto Gar Hostile Shots Fired 214 | . 16 8 16 74 100 Missed 64 | . 7 1 2 22 32 Hits 150 | . 9 7 14 52 68 Melee 4 | . . . . . 4 Projectile 146 | . 9 7 14 52 64 Critical Strikes 5 | . . . 1 2 2 Damage Taken 2318 | . 108 56 209 784 1161 Core 444 | . 36 8 44 81 275 Absorbed by Shields 85 | . . . . 85 . Redirected to Shielding 4 | . . . . . 4 Regen/Repaired (Parts) 122 | . . . . 122 . Core Remaining (%) 91 | 100 . 82 . . . Volleys Fired 158 | 16 1 4 8 80 49 Largest 2 | 2 2 2 2 2 2 Hottest 136 | 80 80 80 80 136 136 Shots Fired 264 | 32 2 8 16 136 70 Gun 87 | 32 2 8 16 29 . Cannon 117 | . . . . 59 58 Launcher 60 | . . . . 48 12 Special . | . . . . . . Kinetic . | . . . . . . Thermal 204 | 32 2 8 16 88 58 Explosive 60 | . . . . 48 12 Electromagnetic . | . . . . . . Robot Hit Streak 9 | 6 6 2 6 6 9 Robot Miss Streak 8 | 3 . 3 3 8 4 Penetration Max . | . . . . . . Secondary Targets . | . . . . . . Shots Hit Robots 123 | 18 2 3 11 53 36 Core Hits 100 | 8 2 2 4 55 29 Critical Kills . | . . . . . . Critical Parts Destroyed . | . . . . . . Critical Strikes . | . . . . . . Melee Attacks . | . . . . . . Impact . | . . . . . . Slashing . | . . . . . . Piercing . | . . . . . . Sneak Attacks . | . . . . . . Combat Hostiles . | . . . . . . Follow-up Attacks . | . . . . . . Damage Inflicted 4517 | 226 22 32 129 2741 1367 Guns 521 | 226 22 32 129 112 . Cannons 1395 | . . . . 634 761 Explosions 2578 | . . . . 1995 583 Melee . | . . . . . . Ramming 23 | . . . . . 23 Kinetic . | . . . . . . Thermal 1916 | 226 22 32 129 746 761 Explosive 2578 | . . . . 1995 583 Electromagnetic . | . . . . . . Impact . | . . . . . . Slashing . | . . . . . . Piercing . | . . . . . . Highest Corruption 8 | . . . . . 8 Average Corruption 4 | . . . . . 4 Corruption Purged . | . . . . . . Corruption Blocked . | . . . . . . Effects 2 | . . . . . 2 Message Errors 1 | . . . . . 1 Data Loss (major) 1 | . . . . . 1 Overload Shots . | . . . . . . Overflow Damage 153 | . . . . 104 49 Projectiles 6 | . . . . . 6 Explosions 147 | . . . . 104 43 Melee . | . . . . . . Knockbacks . | . . . . . . Impact . | . . . . . . Kinetic . | . . . . . . Secondary . | . . . . . . Self-Inflicted Damage 270 | . . . . 187 83 Shots 11 | . . . . 6 5 Rammed 7 | . . . . . 7 Targets Rammed 7 | . . . . . 7 Kicked . | . . . . . . Crushed . | . . . . . . Highest Temperature 526 | 90 18 72 104 354 526 Average Temperature 110 | 35 12 32 43 95 167 Received Heat Transfer 371 | . 60 . 90 185 36 Effects 8 | . . . . . 8 Shutdowns 1 | . . . . . 1 Interference 3 | . . . . . 3 Damage (minor) 1 | . . . . . 1 Damage (major) 3 | . . . . . 3 Siege Activations . | . . . . . . Martial Activations . | . . . . . . Shielding Activations . | . . . . . . Robots Disrupted . | . . . . . . Combat Hostiles . | . . . . . . Robots Corrupted . | . . . . . . Combat Hostiles . | . . . . . . Parts Fried . | . . . . . . Impact Corruptions . | . . . . . . Robots Melted . | . . . . . . Combat Hostiles . | . . . . . . Parts Melted 5 | . . . 1 3 1 Heat Transferred 3543 | 500 50 75 300 1397 1221 Parts Sabotaged . | . . . . . . Parts Stolen . | . . . . . . Parts Stripped . | . . . . . . Power Chain Reactions . | . . . . . . Alert | -11 -10 -10 -9 -9 -9 ------- Run | Yrd Mat Min Mat Sto Gar Maximum Alert Level 3 | . . . . 2 3 Low Security (%) 31 | 100 100 100 100 21 . Level 1 34 | . . . . 48 18 Level 2 31 | . . . . 29 63 Level 3 3 | . . . . . 17 Level 4 . | . . . . . . Level 5 . | . . . . . . High Security . | . . . . . . Max Security . | . . . . . . Peak Influence 767 | 10 6 55 40 553 767 Initial 351 | . 6 . 13 12 351 Average 310 | 2 2 26 13 318 544 Influence Increases 1866 | 35 5 55 77 1188 506 Destroy 0b10 Robot/C 900 | . . 40 40 500 320 Destroy 0b10 Robot/NC 120 | 35 5 . . 75 5 Destroy Leader 184 | . . . 20 154 10 Allied During Kill 8 | . . . . 6 2 Successful Hack 51 | . . . 17 20 14 Disable Machine 180 | . . . . 180 . Anti-Garrison Action 50 | . . . . . 50 Destroy Structure 343 | . . . . 238 105 Lose Combat Pursuer 30 | . . 15 . 15 . Influence Decreases 1169 | 25 15 20 82 677 350 Entered New Map 234 | . 4 . 22 18 190 Time Decay 675 | 25 11 20 60 559 . Lost Part 100 | . . . . 20 80 Lost Ally 160 | . . . . 80 80 Squads Dispatched 4 | . 2 . . 2 . Investigation 2 | . . . . 2 . Extermination . | . . . . . . Reinforcement 2 | . 2 . . . . Assault . | . . . . . . Garrison . | . . . . . . Intercept . | . . . . . . Searches Triggered . | . . . . . . Construction Impeded . | . . . . . . Haulers Reinforced . | . . . . . . Active Scanning Responses . | . . . . . . Cargo Convoy Interrupts . | . . . . . . Stealth | -11 -10 -10 -9 -9 -9 --------- Run | Yrd Mat Min Mat Sto Gar Distress Signals 2 | . . . 1 1 . Communications Jammed . | . . . . . . Distress Signals . | . . . . . . Times Spotted 62 | . 11 3 4 29 15 Peak Tracking Total 10 | . 10 3 3 5 8 Tactical Retreats 2 | . . 1 . 1 . Traps | -11 -10 -10 -9 -9 -9 ------- Run | Yrd Mat Min Mat Sto Gar Traps Triggered 2 | . . . . 1 1 Indirectly . | . . . . . . Trap Hack Attempts . | . . . . . . Triggered . | . . . . . . Disarmed 5 | . . . . 5 . Reprogrammed . | . . . . . . Reused . | . . . . . . Traps Extracted . | . . . . . . Installed . | . . . . . . Triggered . | . . . . . . Machines | -11 -10 -10 -9 -9 -9 ---------- Run | Yrd Mat Min Mat Sto Gar Machines Disabled 13 | . . . . 12 1 Max in Single Turn 2 | . . . . 2 1 Garrison Relay 1 | . . . . . 1 Machines Repaired . | . . . . . . Machines Dismantled . | . . . . . . Machines Sabotaged . | . . . . . . Overloaded Fab Kills . | . . . . . . Hacking | -11 -10 -10 -9 -9 -9 --------- Run | Yrd Mat Min Mat Sto Gar Machines Accessed 16 | . 1 . 3 11 1 Terminals 11 | . 1 . 2 7 1 Fabricators . | . . . . . . Repair Stations 2 | . . . . 2 . Recycling Units 1 | . . . . 1 . Scanalyzers 1 | . . . 1 . . Garrison Access 1 | . . . . 1 . Total Hacks 43 | . 1 . 8 32 2 Successful 28 | . . . 6 20 2 Failed 15 | . 1 . 2 12 . Catastrophic 1 | . . . . 1 . Database Lockouts . | . . . . . . Manual 26 | . 1 . 4 20 1 Terminals 25 | . 1 . 3 19 2 Fabricators . | . . . . . . Repair Stations 10 | . . . . 10 . Recycling Units 1 | . . . . 1 . Scanalyzers 5 | . . . 5 . . Garrison Access 2 | . . . . 2 . Terminal Hacks 6 | . . . . 5 1 Part Schematic 2 | . . . . 2 . Open Door 2 | . . . . 2 . Emergency Access Points 1 | . . . . . 1 Disarm Traps 1 | . . . . 1 . Fabricator Hacks . | . . . . . . Repair Station Hacks 6 | . . . . 6 . Scan Component 4 | . . . . 4 . Repair 2 | . . . . 2 . Recycling Unit Hacks 1 | . . . . 1 . Report Inventory 1 | . . . . 1 . Scanalyzer 4 | . . . 4 . . Insert Component 2 | . . . 2 . . Analyze 2 | . . . 2 . . Garrison Access Hacks 2 | . . . . 2 . Unlock Access 1 | . . . . 1 . Coupler Status 1 | . . . . 1 . Unauthorized Hacks 9 | . . . 2 6 1 Terminals 8 | . . . 2 5 1 Botnet 8 | . . . 2 5 1 Fabricators . | . . . . . . Repair Stations 1 | . . . . 1 . Patch 1 | . . . . 1 . Recycling Units . | . . . . . . Scanalyzers . | . . . . . . Garrison Access . | . . . . . . Data Cores Recovered . | . . . . . . Used . | . . . . . . Hacking Detections 10 | . 1 . 3 5 1 Full Trace Events 1 | . . . . 1 . Feedback Events . | . . . . . . Feedback Blocked . | . . . . . . Robot Schematics Acquired . | . . . . . . Robots Built . | . . . . . . Authchips . | . . . . . . Time . | . . . . . . Total Robot Build Rating . | . . . . . . Part Schematics Acquired 4 | . . . 2 2 . Parts Built . | . . . . . . Authchips . | . . . . . . Time . | . . . . . . Total Part Build Rating . | . . . . . . Parts Repaired 2 | . . . . 2 . Time 64 | . . . . 64 . Parts Recycled . | . . . . . . Recycled Matter . | . . . . . . Retrieved Matter . | . . . . . . Retrieved Components . | . . . . . . Parts Scanalyzed 2 | . . . 2 . . Part Schematics Acquired 2 | . . . 2 . . Parts Damaged . | . . . . . . Bothacking | -11 -10 -10 -9 -9 -9 ------------ Run | Yrd Mat Min Mat Sto Gar Used RIF Installer . | . . . . . . Robots Hacked . | . . . . . . Non-combat . | . . . . . . Combat . | . . . . . . Robot Hacks Applied . | . . . . . . Relay Couplers Released 3 | . . . . . 3 Machine Destruction 3 | . . . . . 3 Fabnet Peak Effective % . | . . . . . . Robots Rewired 3 | . . . . . 3 Allies Hacked . | . . . . . . Hacks Repelled . | . . . . . . Allies | -11 -10 -10 -9 -9 -9 -------- Run | Yrd Mat Min Mat Sto Gar Total Allies 3 | . . . . . 3 Largest Group 3 | . . . . . 3 Highest-Rated Group 40 | . . . . . 40 Highest-Rated Ally 15 | . . . . . 15 Total Orders 4 | . . . . 3 1 EXPLORE 4 | . . . . 3 1 Ally Attacks 5 | . . . . . 5 Total Damage 116 | . . . . . 116 Kills 2 | . . . . . 2 Allies Corrupted . | . . . . . . Allies Melted . | . . . . . . Intel | -11 -10 -10 -9 -9 -9 ------- Run | Yrd Mat Min Mat Sto Gar Active Infowar (turns) 1835 | 97 98 61 162 925 492 Optics 1316 | . . . . 824 492 Seismic 519 | 97 98 61 162 101 . Robot Analysis Total . | . . . . . . Derelict Logs Recovered . | . . . . . . Drone Launches 14 | . . . . 14 . Drone Recoveries . | . . . . . . Exploration | -11 -10 -10 -9 -9 -9 ------------- Run | Yrd Mat Min Mat Sto Gar Turns Passed 2725 | 157 98 61 162 1684 563 Spaces Moved 1653 | 115 117 62 137 991 231 Core 5 | 5 . . . . . Treads 650 | . . . . 419 231 Legs . | . . . . . . Wheels 998 | 110 117 62 137 572 . Hover . | . . . . . . Flight . | . . . . . . Fastest Speed 50 | 50 80 80 80 85 160 Average Speed 119 | 78 80 80 91 125 160 Slowest Speed 160 | 80 80 80 95 160 160 Overloaded Moves . | . . . . . . Propulsion Burnouts . | . . . . . . Robots Hopped . | . . . . . . Potential Cave-ins . | . . . . . . Cave-ins Triggered . | . . . . . . Exploration Rate (%) 33 | 4 29 25 9 96 38 Regions Visited 5 Branch Regions 2 Pre-discovered Areas . | . . . . . . Known Exits Taken 1 | . . . . 1 . Unknown Exits Taken 4 | 1 1 1 1 . . Scrap Searched . | . . . . . . Spaces Dug . | . . . . . . Terrain Destroyed 389 | . . . . 291 98 Melee . | . . . . . . Projectile 4 | . . . . 2 2 AOE 385 | . . . . 289 96 Terrain Rammed . | . . . . . . Walls Destroyed . | . . . . . . Machines Disabled . | . . . . . . Actions | -11 -10 -10 -9 -9 -9 --------- Run | Yrd Mat Min Mat Sto Gar Total 2144 | 147 119 65 157 1304 352 Wait 203 | . . . 3 170 30 Move 1647 | 114 116 61 136 990 230 Hop . | . . . . . . Pick Up 32 | 8 . . 6 16 2 Fast Attach 11 | 6 . . 1 4 . Attach 12 | 1 . . 2 4 5 Detach 1 | . . . . 1 . Swap 17 | . 1 . 1 12 3 Drop 27 | 2 1 . . 20 4 Fire 158 | 16 1 4 8 80 49 Melee . | . . . . . . Ram . | . . . . . . Kick . | . . . . . . Crush 7 | . . . . . 7 Escape Stasis . | . . . . . . Rewire 22 | . . . . . 22 Trap . | . . . . . . Miscellaneous 7 | . . . . 7 . Route ------- -11/Scrapyard -10/Materials -10/Mines -9/Materials -9/Storage (discovered 2 exits: [*Mat] / Gar) -9/Garrison (discovered 1 exit: [*Rec]) History --------- Turn | Location | Event 17 | -11/Scrapyard | Discovered new exit (range 16) 158 | -11/Scrapyard | Entered Materials 246 | -10/Materials | Discovered new exit (range 14) 256 | -10/Materials | Entered Mines 306 | -10/Mines | Discovered new exit (range 15) 309 | -10/Mines | Build established: Mutant 317 | -10/Mines | Entered Materials 317 | -9/Materials | Evolved 2 slots: Utility x2 467 | -9/Materials | Discovered new exit (range 6) 479 | -9/Materials | Entered Storage 569 | -9/Storage | Repaired Hrd. Light Armor Plating 785 | -9/Storage | Repaired Hrd. Light Armor Plating 1945 | -9/Storage | Discovered new exit (range 34) 1989 | -9/Storage | Lost 8 allies 2112 | -9/Storage | Identified exit to Garrison 2163 | -9/Storage | Entered Garrison 2163 | -9/Garrison | Accompanied by 3 allies 2164 | -9/Garrison | Build established: Scavenger-Mutant 2167 | -9/Garrison | Triggered checkpoint 2265 | -9/Garrison | Triggered checkpoint 2318 | -9/Garrison | Discovered new exit (range 10) 2337 | -9/Garrison | Attempted to access garrison exit controls, blocked by remote lockdown 2408 | -9/Garrison | Core integrity fell below 50% 2532 | -9/Garrison | Triggered checkpoint 2551 | -9/Garrison | Lost 3 allies 2607 | -9/Garrison | Triggered checkpoint 2622 | -9/Garrison | Garrison Relay disabled 2688 | -9/Garrison | Core integrity fell below 20% 2726 | -9/Garrison | Destroyed by P-60 Hacker with Shock Rifle Last Messages --------------- disabled. 02672_ Drone Bay destroyed. 02675_ Lgt. Armor Plating destroyed. 02686_ Slammed into P-60 Hacker. 02698_ System corrupted: Substantial component data lost. 02698_ Destroyed Gravmag System. 02699_ Adv. Beam Cannon destroyed. 02702_ Imp. Ion Engine destroyed. 02702_ Destroyed Shock Rifle. 02710_ P-60 Hacker heat spikes uncontrollably. 02710_ Lgt. Treads destroyed. 02713_ P-60 Hacker heat spikes uncontrollably. 02714_ P-60 Hacker heat damages core (-6). 02716_ P-60 Hacker heat damages Remote Datajack. 02716_ Adv. Beam Cannon destroyed. 02717_ P-60 Hacker heat damages core (-11). 02718_ H4U8|8QAZMN,HPUDUKBRH 02719_ Acquired 4 matter. 02723_ Lgt. Treads destroyed. Map ----- +----------------------------------------------------+ | ??????????????????????????????????????????????? | | ??????????????????????????????????????????????? | | ??????????????????????????????????????????????? | | ??????????????????????????????????????????????? | | ??????????????????????????????????????????????? | | ??????????????????????????????????????????????? | | ??????????????????????????????????????????????? | | ??????????????????????????????????????????????? | | ??????????????????????????????????????????????? | | ??????????????????????????????????????????????? | | ??????????????????????????????????????????????? | | ??????????????????????????????????????????????? | | ??????????????????????????????????????????????? | | ?????????????????????###??????????????????????? | | ?????????????????????+ +??????????????????????? | | ?????????????????????# #??????????????????????? | | ???????????????????+?# #?+????????????????????? | | ?????????????????????# #??????????######???#### | | ?????????????????????+=+??????????# #??## | | ?????????????????????#%#??????????# < #??# ## | | ?????????????????????#p#??????????# #?## * | | ?????????????????????# #?#######??### ###!*!%* | | ?????????????????????# #?#""=""#????# # #%= =% | | ?????????????????????#%#?#" !!"#????# ## [= !/ | | ?????????????????????#%#?## ##????# # # | | ?????????????????????#@###++"++###### # | | ?????????????????????# ## | | ?????????????????????# #### ####### # | | ?????????????????????# #??# " #?###?# | | ?????????????????????+ ##### #### ####"# # | | ?????????????????????+ ###% #*%! #### ! | | ?????????????????????+ ! == /#!= ##### # | | ?????????????????????+ [# [[ =%! | | ?????????????????????+ ### # #! # # ##### # | | ?????????????????????# #?# # # # #??#T # | | ?????????????????????# #?## # # #??## # | | ??????????????+??????? ???###### # # #??## # | | ?????????????????????? ????????####### #??# | | ?????????????????????? ??????????????# ??+ | | ?????????????????????? ??????????????###??# | | ??????????????+???????#???????????????????# # | | ??????????????????????????????????????????# # | | ??????????????????????????????????????????" | | ??????????????????????????????????????????" | | ??????????????????????????????????????????" | | ??????????????????????????????????????????" | | ??????????????????????????????????????????# # | | ??????????????????????????????????????????# # | | ??????????????????????????????????????????+ | | ??????????????????????????????????????????+ | +----------------------------------------------------+ Best States ------------- Heat Dissipation 38 Energy Generation 12 Energy Capacity 265 Matter Stores 300 Matter Capacity 300 Sight Range 18 Terrain Scan Density 10 Armor Coverage 150 Utility Shielding 33 Evasion (%) 44 Recoil Reduction 2 Item Schematics ----------------- Lgt. Treads | -9/Materials | Scanalyzed Wheel | -9/Materials | Scanalyzed Weight Redist. System | -9/Storage | Hacked Rocket Launcher | -9/Storage | Hacked Robot Schematics ------------------ None Fabricated ------------ Nothing Repaired ---------- Hrd. Light Armor Plating | 75% | -9/Storage Hrd. Light Armor Plating | 56% | -9/Storage Alien Tech Used ----------------- None Achievements -------------- Dramatic Entrance Quick And Dirty Challenges ------------ None Game ------ Seed DataSwordTether Manual? 0 Play Time 00:36:43 Cumulative 23.2 hours Start 2025.05.19 @ 10:31:31 End 2025.05.19 @ 11:06:24 Sessions 1 Manual Loads 0 Difficulty Rogue Special Mode None Game No. 32 Rogue 32 Adventurer 0 Explorer 0 Win Type - Total 0 Types 0/0/0/0/0/0/0/0/0/0 Lore% 27 Gallery% 19 Achievement% 21 Wizard Run 0 Options --------- Layout 1 ASCII 0 Keyboard 1 Movement Vi Keybinds 0 Fullscreen 1 Font 24/Smallcaps Map View 50x35 Zoom Use 0% Tactical HUD 1 Map Filters NONE Filters NONE Steam 1 RUN: 7c8a1f3c-6c69-4c59-8b15-8d899cbbea36